bitfinex/quotes_BTCUSD_20220731
["timestamp","ask_amount","ask_price","bid_price","bid_amount"]
[1659301247267,0.02720893,23798.0,23797.0,1.434981]
[1659301247494,0.02720893,23798.0,23797.0,1.734981]
[1659301247947,0.10220893,23798.0,23797.0,1.959334]
[1659301248139,0.10220893,23798.0,23797.0,1.734981]
[1659301249326,0.02720893,23798.0,23797.0,1.434981]
[1659301249539,0.02720893,23798.0,23797.0,1.734981]
[1659301249998,0.10220893,23798.0,23797.0,1.734981]
[1659301251393,0.0348296,23798.0,23797.0,1.434981]
[1659301251590,0.02720893,23798.0,23797.0,1.434981]
[1659301252046,0.10220893,23798.0,23797.0,1.434981]
[1659301252929,0.10220893,23798.0,23797.0,1.46965416]
[1659301253143,0.10220893,23798.0,23797.0,1.434981]
[1659301253360,0.02720893,23798.0,23797.0,1.434981]
[1659301254044,0.14592893,23798.0,23797.0,1.434981]
[1659301254275,0.14592893,23798.0,23797.0,1.014994]
[1659301254276,0.19592893,23798.0,23797.0,1.014994]
[1659301255445,0.42180893,23798.0,23797.0,1.014994]
[1659301256099,0.46908893,23798.0,23797.0,0.314994]
[1659301256321,0.46908893,23798.0,23797.0,0.209998]
[1659301256624,0.16820893,23798.0,23797.0,0.209998]
[1659301256837,0.46908893,23798.0,23797.0,0.209998]
[1659301257059,0.16820893,23798.0,23797.0,0.209998]
[1659301257300,0.42808893,23798.0,23797.0,0.209998]
[1659301257521,0.42808893,23798.0,23797.0,0.204998]
[1659301257738,0.12720893,23798.0,23797.0,0.204998]
[1659301257967,0.46908893,23798.0,23797.0,0.204998]
[1659301258202,0.16820893,23798.0,23797.0,0.204998]
[1659301258431,0.46908893,23798.0,23797.0,0.204998]
[1659301259148,0.16820893,23798.0,23797.0,0.204998]
[1659301259365,0.42808893,23798.0,23797.0,0.204998]
[1659301259822,0.42808893,23798.0,23796.0,0.9452191]
[1659301260030,0.17220893,23798.0,23796.0,0.9451356]
[1659301260248,0.17220893,23798.0,23796.0,0.97980876]
[1659301260530,0.17220893,23798.0,23796.0,0.97989226]
[1659301261409,0.12720893,23798.0,23796.0,0.97980876]
[1659301261641,0.12720893,23798.0,23796.0,0.97989226]
[1659301262066,0.17220893,23798.0,23796.0,1.33190541]
[1659301262792,0.17220893,23798.0,23796.0,1.33182191]
[1659301262793,0.07220893,23798.0,23796.0,1.33182191]
[1659301263133,0.07220893,23798.0,23796.0,1.33189504]
[1659301263333,0.02720893,23798.0,23797.0,6.765e-05]
[1659301263530,0.02720893,23798.0,23797.0,0.04378765]
[1659301263712,0.02720893,23798.0,23797.0,0.74378765]
[1659301263909,0.04420893,23798.0,23797.0,0.74378765]
[1659301265369,0.02720893,23798.0,23797.0,0.74378765]
[1659301265988,0.04420893,23798.0,23797.0,0.74378765]
[1659301267272,0.02720893,23798.0,23797.0,0.74378765]
[1659301267907,0.04420893,23798.0,23797.0,0.74378765]
[1659301269050,0.04420893,23798.0,23797.0,1.04378765]
[1659301269308,0.02720893,23798.0,23797.0,0.74378765]
[1659301270010,0.04420893,23798.0,23797.0,0.74378765]
[1659301270398,0.0518296,23798.0,23797.0,0.7]
[1659301270617,0.04420893,23798.0,23797.0,0.7]
[1659301270751,0.04420893,23798.0,23797.0,0.73467316]
[1659301271201,0.02720893,23798.0,23797.0,0.73467316]
[1659301271906,0.04420893,23798.0,23797.0,0.73467316]
[1659301272292,0.04420893,23798.0,23797.0,0.7]
[1659301273221,0.02720893,23798.0,23797.0,0.7]
[1659301273883,0.04420893,23798.0,23797.0,0.7]
[1659301275184,0.02720893,23798.0,23797.0,0.73467316]
[1659301275412,0.02720893,23798.0,23797.0,0.7]
[1659301275899,0.04420893,23798.0,23797.0,0.7]
[1659301276341,0.04420893,23798.0,23797.0,0.73467316]
[1659301276571,0.04420893,23798.0,23797.0,0.7]
[1659301277007,0.04420893,23798.0,23797.0,1.10725733]
[1659301277232,0.04420893,23798.0,23797.0,2.14193049]
[1659301277460,0.04420893,23798.0,23797.0,2.42998249]
[1659301277685,0.02720893,23798.0,23797.0,2.42998249]
[1659301278440,0.02720893,23798.0,23797.0,2.82998249]
[1659301278662,0.02720893,23798.0,23797.0,2.42998249]
[1659301279350,0.02720893,23798.0,23797.0,2.36628249]
[1659301279574,0.02711998,23798.0,23797.0,2.36628249]
[1659301282434,0.02711998,23798.0,23797.0,2.39723118]
[1659301287517,0.02711998,23798.0,23797.0,1.79723118]
[1659301288916,0.02711998,23798.0,23797.0,2.09723118]
[1659301291091,0.02711998,23798.0,23797.0,2.06628249]
[1659301297214,0.02711998,23798.0,23797.0,2.06621266]
[1659301297424,0.02711998,23798.0,23797.0,2.19221266]
[1659301298516,0.02689764,23798.0,23797.0,2.19221266]
[1659301299167,0.02724711,23798.0,23797.0,2.19221266]
[1659301301332,0.02724711,23798.0,23797.0,2.23411266]
[1659301302283,0.02724711,23798.0,23797.0,2.19221266]
[1659301302521,0.02724711,23798.0,23797.0,1.89221266]
[1659301302752,0.02724711,23798.0,23797.0,0.82593017]
[1659301302753,0.07858778,23798.0,23797.0,0.82593017]
[1659301303692,0.07096711,23798.0,23797.0,0.82593017]
[1659301303924,0.07096711,23798.0,23797.0,0.126]
[1659301304158,0.14996711,23798.0,23797.0,0.126]
[1659301305163,0.10624711,23798.0,23797.0,0.126]
[1659301305300,0.02724711,23798.0,23797.0,0.126]
[1659301305970,0.10624711,23798.0,23797.0,0.126]
[1659301307520,0.02724711,23798.0,23797.0,0.126]
[1659301308002,0.10624711,23798.0,23797.0,0.126]
[1659301309367,0.02724711,23798.0,23797.0,0.126]
[1659301309806,0.02724711,23798.0,23797.0,0.16074081]
[1659301310038,0.10624711,23798.0,23797.0,0.16074081]
[1659301310482,0.10624711,23798.0,23797.0,0.526]
[1659301310711,0.10624711,23798.0,23797.0,1.43703731]
[1659301311373,0.02724711,23798.0,23797.0,1.21268631]
[1659301311838,0.02724711,23798.0,23797.0,1.17801315]
[1659301312069,0.02724711,23798.0,23797.0,0.87801315]
[1659301312287,0.02724711,23798.0,23797.0,1.17801315]
[1659301313238,0.02724711,23798.0,23797.0,0.126]
[1659301313461,0.02724711,23798.0,23797.0,0.426]
[1659301313691,0.02724711,23798.0,23797.0,0.4261287]
[1659301314198,0.10524711,23798.0,23797.0,0.4261287]
[1659301314874,0.10524711,23798.0,23797.0,0.41824007]
[1659301315324,0.02724711,23798.0,23797.0,0.41824007]
[1659301315547,0.02724711,23798.0,23797.0,0.3001287]
[1659301315996,0.10524711,23798.0,23797.0,0.7001287]
[1659301316215,0.10524711,23798.0,23797.0,1.2244797]
[1659301316730,0.10524711,23798.0,23797.0,1.2663797]
[1659301317402,0.02724711,23798.0,23797.0,1.2663797]
[1659301317631,0.02724711,23798.0,23797.0,0.9663797]
[1659301320703,0.02224711,23798.0,23797.0,0.9663797]
[1659301320936,0.07224711,23798.0,23797.0,1.2813567]
[1659301321157,0.02339102,23798.0,23797.0,0.9663797]
[1659301321369,0.02339102,23798.0,23797.0,1.1763647]
[1659301321584,0.07339102,23798.0,23797.0,1.1763647]
[1659301324563,0.02339102,23798.0,23797.0,1.1763647]
[1659301328898,0.02328397,23798.0,23797.0,2.28362203]
[1659301329130,0.65329572,23803.0,23798.0,0.14183999]
[1659301329367,0.65329572,23803.0,23802.0,1.21551315]
[1659301329600,0.65329572,23803.0,23802.0,1.93173964]
[1659301329831,0.65329572,23803.0,23802.0,2.27363964]
[1659301330053,0.59521572,23803.0,23802.0,2.42858164]
[1659301330267,0.24582543,23803.0,23802.0,3.23092507]
[1659301330502,0.01179543,23803.0,23802.0,3.23092507]
[1659301330739,0.01265184,23812.0,23804.0,0.0419]
[1659301330961,0.01265184,23812.0,23810.0,0.4419]
[1659301331202,0.03353389,23813.0,23812.0,0.7]
[1659301331412,0.03353389,23813.0,23812.0,1.40725733]
[1659301331634,0.04602461,23813.0,23812.0,1.63143133]
[1659301331850,0.002,23813.0,23812.0,1.63143133]
[1659301332614,0.002,23813.0,23812.0,2.66675394]
[1659301333072,0.002,23813.0,23812.0,2.66780155]
[1659301333293,0.002,23813.0,23812.0,2.29557894]
[1659301333558,0.002,23813.0,23812.0,1.63241225]
[1659301334013,0.082,23813.0,23812.0,1.63241225]
[1659301334232,0.082,23813.0,23812.0,1.22515492]
[1659301334913,0.2366,23813.0,23812.0,0.69993331]
[1659301335359,0.19288,23813.0,23812.0,0.69993331]
[1659301335575,0.19288,23813.0,23812.0,0.92410731]
[1659301335576,0.082,23813.0,23812.0,0.92410731]
[1659301335799,0.11275654,23813.0,23812.0,0.69993331]
[1659301336130,0.03275654,23813.0,23812.0,0.74198092]
[1659301336299,0.03383499,23813.0,23812.0,0.74198092]
[1659301336745,0.03383499,23813.0,23812.0,1.04198092]
[1659301336978,0.03383499,23813.0,23812.0,0.74198092]
[1659301337210,0.03492552,23813.0,23812.0,0.96615492]
[1659301337449,0.03492552,23813.0,23812.0,0.70098092]
[1659301338137,0.03492552,23813.0,23812.0,0.74093331]
[1659301339269,0.03492552,23813.0,23812.0,0.69993331]
[1659301339716,0.03492552,23813.0,23812.0,0.70001154]
[1659301339959,0.03492552,23813.0,23812.0,0.74101154]
[1659301340919,0.03492552,23813.0,23812.0,1.04101154]
[1659301341145,0.03492552,23813.0,23812.0,0.74101154]
[1659301341384,0.03492552,23813.0,23812.0,0.70001154]
[1659301341603,0.03492552,23813.0,23812.0,0.69993331]
[1659301342265,0.03492552,23813.0,23812.0,1.04093331]
[1659301342496,0.03492552,23813.0,23812.0,1.61712046]
[1659301342772,0.03492552,23813.0,23812.0,1.26510731]
[1659301343002,0.03492552,23813.0,23812.0,1.2998587]
[1659301343212,0.03535231,23813.0,23812.0,1.2998587]
[1659301343432,0.03535231,23813.0,23812.0,1.0756847]
[1659301343678,0.03535231,23813.0,23812.0,1.0346847]
[1659301344140,0.03535231,23813.0,23812.0,1.0756847]
[1659301344607,0.03535231,23813.0,23812.0,1.2998587]
[1659301345314,0.03535231,23813.0,23812.0,1.0346847]
[1659301345524,0.03535231,23813.0,23812.0,1.2588587]
[1659301345975,0.03535231,23813.0,23812.0,1.0756847]
[1659301346214,0.03535231,23813.0,23812.0,1.70711603]
[1659301346432,0.03535231,23813.0,23812.0,2.05912918]
[1659301347406,0.03535231,23813.0,23812.0,2.28496512]
[1659301348097,0.03535231,23813.0,23812.0,2.32596512]
[1659301348767,0.03535231,23813.0,23812.0,2.72596512]
[1659301349435,0.03535231,23813.0,23812.0,2.68496512]
[1659301350110,0.03535231,23813.0,23812.0,2.77386512]
[1659301351269,0.03535231,23813.0,23812.0,1.59820058]
[1659301351270,0.03218333,23813.0,23812.0,1.59820058]
[1659301351490,0.03218333,23813.0,23812.0,1.33136464]
[1659301351491,0.03035231,23813.0,23812.0,1.33136464]
[1659301351718,0.03035231,23813.0,23812.0,1.10719064]
[1659301352182,0.03035231,23813.0,23812.0,1.16719064]
[1659301352407,0.18695565,23813.0,23812.0,1.16719064]
[1659301353401,0.18595398,23813.0,23812.0,1.10719064]
[1659301353637,0.18595398,23813.0,23812.0,1.1418638]
[1659301353864,0.03135398,23813.0,23812.0,1.1418638]
[1659301354089,0.03135398,23813.0,23812.0,1.16219064]
[1659301354742,0.03135398,23813.0,23812.0,1.1968638]
[1659301355191,0.03068391,23813.0,23812.0,1.16219064]
[1659301355455,0.03068391,23813.0,23812.0,1.10719064]
[1659301355919,0.03068391,23813.0,23812.0,1.1418638]
[1659301356134,0.03068391,23813.0,23812.0,1.1958638]
[1659301356346,0.03134324,23813.0,23812.0,1.15119064]
[1659301356815,0.03134324,23813.0,23812.0,1.3117838]
[1659301357055,0.03134324,23813.0,23812.0,1.80128464]
[1659301357359,0.03134324,23813.0,23812.0,1.52311064]
[1659301357817,0.03134324,23813.0,23812.0,1.7819578]
[1659301358042,0.03134324,23813.0,23812.0,1.8419578]
[1659301359408,0.03134324,23813.0,23812.0,1.5577838]
[1659301359651,0.03134324,23813.0,23812.0,1.7819578]
[1659301359929,0.03134324,23813.0,23812.0,1.5577838]
[1659301360141,0.03134324,23813.0,23812.0,1.6177838]
[1659301360586,0.03134324,23813.0,23812.0,1.8419578]
[1659301360808,0.03134324,23813.0,23812.0,2.19397095]
[1659301361280,0.03134324,23813.0,23812.0,2.13397095]
[1659301362035,0.03134324,23813.0,23812.0,2.19397095]
[1659301363366,0.03134324,23813.0,23812.0,2.13501856]
[1659301364094,0.03134324,23813.0,23812.0,2.19501856]
[1659301364538,0.32940818,23818.0,23813.0,0.09993999]
[1659301364770,0.06229533,23818.0,23814.0,1.014761]
[1659301364997,0.06229533,23818.0,23815.0,0.03572077]
[1659301365213,0.27215133,23818.0,23815.0,0.44021827]
[1659301366119,0.35215133,23818.0,23815.0,0.44021827]
[1659301367479,0.27215133,23818.0,23815.0,0.44021827]
[1659301367754,0.27215133,23818.0,23816.0,0.0419]
[1659301367982,0.35115133,23818.0,23817.0,0.0419]
[1659301368433,0.35215259,23818.0,23817.0,0.0419]
[1659301368893,0.35215259,23818.0,23817.0,0.3419]
[1659301369374,0.27315259,23818.0,23817.0,0.3419]
[1659301369611,0.16821659,23818.0,23817.0,0.3419]
[1659301370074,0.16821659,23818.0,23817.0,0.4209]
[1659301371009,0.16821659,23818.0,23817.0,0.079]
[1659301371529,0.16821659,23818.0,23816.0,1.70247339]
[1659301371982,0.24721659,23818.0,23816.0,1.70247339]
[1659301372205,0.24821785,23818.0,23816.0,1.70247339]
[1659301372902,0.24821785,23818.0,23816.0,1.35046024]
[1659301373135,0.30626102,23818.0,23816.0,1.14063324]
[1659301373359,0.30626102,23818.0,23816.0,1.03572024]
[1659301373612,0.22726102,23818.0,23816.0,0.82589]
[1659301374064,0.30626102,23818.0,23816.0,0.82589]
[1659301374734,0.29821785,23818.0,23816.0,0.86082056]
[1659301374956,0.29821785,23818.0,23816.0,0.82589]
[1659301375450,0.30088,23817.0,23816.0,0.82589]
[1659301375673,0.16921785,23818.0,23816.0,0.96574256]
[1659301375904,0.30088,23817.0,23816.0,0.96574256]
[1659301376130,0.24821785,23818.0,23816.0,0.930812]
[1659301376362,0.35088,23817.0,23816.0,0.930812]
[1659301376568,0.30088,23817.0,23816.0,0.96611026]
[1659301376818,0.35314185,23818.0,23816.0,0.96611026]
[1659301377042,0.35088,23817.0,23816.0,0.96611026]
[1659301377259,0.05,23817.0,23816.0,0.96611026]
[1659301378023,0.129,23817.0,23816.0,0.96611026]
[1659301378454,0.129,23817.0,23816.0,0.930812]
[1659301378874,0.079,23817.0,23816.0,0.930812]
[1659301379106,0.079,23817.0,23816.0,0.82589]
[1659301379408,0.30088,23817.0,23816.0,0.82589]
[1659301379626,0.7161805,23817.0,23816.0,0.82589]
[1659301379853,0.7477005,23817.0,23816.0,0.82589]
[1659301380069,0.8277005,23817.0,23816.0,0.82589]
[1659301380723,0.8227005,23817.0,23816.0,0.82589]
[1659301381163,0.8534676,23817.0,23816.0,0.82589]
[1659301381414,0.7734676,23817.0,23816.0,0.82589]
[1659301381642,0.7419476,23817.0,23816.0,0.82589]
[1659301382098,0.8219476,23817.0,23816.0,0.82589]
[1659301382547,0.81390443,23817.0,23816.0,0.86107739]
[1659301382775,0.51802443,23817.0,23816.0,0.86107739]
[1659301382996,0.81885843,23817.0,23816.0,0.82589]
[1659301383468,0.7469016,23817.0,23816.0,0.82589]
[1659301384108,0.8269016,23817.0,23816.0,0.82589]
[1659301385036,0.81885843,23817.0,23816.0,0.82589]
[1659301385506,0.73885843,23817.0,23816.0,0.82589]
[1659301386156,0.8269016,23817.0,23816.0,0.82589]
[1659301386391,0.81885843,23817.0,23816.0,0.82589]
[1659301387289,0.7469016,23817.0,23816.0,0.82589]
[1659301387494,0.73885843,23817.0,23816.0,0.82589]
[1659301388157,0.8269016,23817.0,23816.0,0.82589]
[1659301388602,0.81885843,23817.0,23816.0,0.82589]
[1659301389282,0.73885843,23817.0,23816.0,0.82589]
[1659301389955,0.81885843,23817.0,23816.0,0.82589]
[1659301390180,0.81885843,23817.0,23816.0,0.96576288]
[1659301390391,0.81983494,23817.0,23816.0,0.96576288]
[1659301390812,0.81983494,23817.0,23816.0,0.93082]
[1659301391233,0.81983494,23817.0,23816.0,0.96576288]
[1659301391451,0.73983494,23817.0,23816.0,0.26576288]
[1659301391664,0.73983494,23817.0,23816.0,0.23082]
[1659301392106,0.81983494,23817.0,23816.0,0.23082]
[1659301392379,0.81983494,23817.0,23816.0,0.12589]
[1659301392592,0.82787811,23817.0,23816.0,0.82589]
[1659301393268,0.81983494,23817.0,23816.0,0.82589]
[1659301394144,0.59900094,23817.0,23816.0,0.82589]
[1659301394357,0.89983494,23817.0,23816.0,0.96549416]
[1659301394586,0.89983494,23817.0,23816.0,0.930821]
[1659301395032,0.59900094,23817.0,23816.0,0.930821]
[1659301395467,0.43900094,23817.0,23816.0,0.930821]
[1659301395694,0.73983494,23817.0,23816.0,0.930821]
[1659301395936,0.43900094,23817.0,23816.0,0.930821]
[1659301396155,0.51900094,23817.0,23816.0,0.930821]
[1659301396379,0.52704411,23817.0,23816.0,0.96576388]
[1659301396598,0.51900094,23817.0,23816.0,0.930821]
[1659301396808,0.81983494,23817.0,23816.0,0.230821]
[1659301397943,0.73983494,23817.0,23816.0,0.230821]
[1659301398160,0.82787811,23817.0,23816.0,0.230821]
[1659301399090,0.82787811,23817.0,23816.0,0.12589]
[1659301399528,0.74787811,23817.0,23816.0,0.12589]
[1659301399979,0.82787811,23817.0,23816.0,0.12589]
[1659301400196,0.82787811,23817.0,23816.0,0.82589]
[1659301401314,0.74787811,23817.0,23816.0,0.82589]
[1659301402002,0.82787811,23817.0,23816.0,0.930826]
[1659301403185,0.82787811,23817.0,23816.0,0.82589]
[1659301403861,0.74787811,23817.0,23816.0,0.82589]
[1659301404104,0.82787811,23817.0,23816.0,0.82589]
[1659301405221,0.81983494,23817.0,23816.0,0.96550016]
[1659301405507,0.73983494,23817.0,23816.0,1.140694]
[1659301405735,0.43900094,23817.0,23816.0,0.930827]
[1659301406199,0.51900094,23817.0,23816.0,0.96550016]
[1659301406667,0.81983494,23817.0,23816.0,0.92914749]
[1659301406899,0.51900094,23817.0,23816.0,0.86611049]
[1659301407329,0.43900094,23817.0,23816.0,0.86611049]
[1659301407548,0.43900094,23817.0,23816.0,0.97104249]
[1659301408006,0.43900094,23817.0,23816.0,1.04404249]
[1659301408456,0.43900094,23817.0,23816.0,1.25390949]
[1659301408678,0.73983494,23817.0,23816.0,1.25390949]
[1659301408932,0.44704411,23817.0,23816.0,1.25390949]
[1659301409364,0.44704411,23817.0,23816.0,1.18090949]
[1659301409586,0.74787811,23817.0,23816.0,1.18090949]
[1659301409814,0.44704411,23817.0,23816.0,1.18090949]
[1659301410048,0.74787811,23817.0,23816.0,1.25390949]
[1659301410513,0.44704411,23817.0,23816.0,1.25390949]
[1659301411164,0.74787811,23817.0,23816.0,1.25390949]
[1659301411378,0.74787811,23817.0,23816.0,1.18090949]
[1659301411597,0.43900094,23817.0,23816.0,1.18090949]
[1659301411857,0.44704411,23817.0,23816.0,0.48090949]
[1659301412090,0.73983494,23817.0,23816.0,0.55390949]
[1659301412302,0.73983494,23817.0,23816.0,1.25390949]
[1659301412513,0.43900094,23817.0,23816.0,1.25390949]
[1659301412762,0.44704411,23817.0,23816.0,1.25390949]
[1659301413487,0.44704411,23817.0,23816.0,1.18090949]
[1659301413707,0.74787811,23817.0,23816.0,1.18090949]
[1659301414139,0.44704411,23817.0,23816.0,1.25390949]
[1659301414634,0.74787811,23817.0,23816.0,1.25390949]
[1659301414870,0.74787811,23817.0,23816.0,0.89721049]
[1659301415081,1.19309811,23817.0,23816.0,0.073]
[1659301415303,1.19309811,23817.0,23810.0,0.7]
[1659301415304,0.05,23811.0,23810.0,0.7]
[1659301415554,0.05,23809.0,23808.0,6.582e-05]
[1659301415785,1.10809133,23809.0,23802.0,0.35201315]
[1659301416012,1.10809133,23809.0,23798.0,0.1349]
[1659301416013,0.77179133,23808.0,23798.0,0.1349]
[1659301416249,0.05,23800.0,23798.0,0.35201315]
[1659301416476,0.00804317,23799.0,23798.0,0.35201315]
[1659301416705,0.35804317,23799.0,23798.0,0.35201315]
[1659301417161,0.4603005,23799.0,23797.0,0.126]
[1659301417395,0.40725733,23798.0,23797.0,0.126]
[1659301417609,1.35640069,23798.0,23796.0,0.35201315]
[1659301417833,0.05,23797.0,23796.0,0.35201315]
[1659301418063,0.45725733,23797.0,23796.0,0.35201315]
[1659301418485,0.80809133,23797.0,23796.0,0.35201315]
[1659301418719,0.80809133,23797.0,23794.0,0.35301315]
[1659301418982,0.00804317,23796.0,23794.0,0.35301315]
[1659301420123,0.10004317,23796.0,23794.0,0.35301315]
[1659301420342,0.15004317,23796.0,23794.0,0.35301315]
[1659301420567,0.15207329,23796.0,23794.0,0.0010836]
[1659301420794,0.05,23795.0,23794.0,0.0010836]
[1659301421013,0.05,23795.0,23794.0,0.35309675]
[1659301421462,0.05,23795.0,23794.0,0.35301315]
[1659301422129,0.094,23795.0,23794.0,0.001]
[1659301422371,0.094,23795.0,23794.0,0.35301315]
[1659301422611,0.094,23795.0,23794.0,0.65301315]
[1659301422612,0.044,23795.0,23794.0,0.65301315]
[1659301422822,0.044,23795.0,23794.0,0.91770841]
[1659301423036,0.044,23795.0,23794.0,1.31770841]
[1659301423744,0.044,23795.0,23794.0,1.72496574]
[1659301423959,0.071,23795.0,23794.0,1.75651574]
[1659301424908,0.071,23795.0,23794.0,1.72496574]
[1659301425339,0.00203012,23796.0,23794.0,1.72496574]
[1659301425572,0.00203012,23796.0,23795.0,0.39993999]
[1659301425785,0.00203012,23796.0,23795.0,0.62932699]
[1659301425998,0.03803012,23796.0,23795.0,0.62932699]
[1659301426229,0.08803012,23796.0,23795.0,0.62919379]
[1659301426450,0.08803012,23796.0,23795.0,0.529387]
[1659301427311,0.05203012,23796.0,23795.0,0.529387]
[1659301427953,0.08903012,23796.0,23795.0,0.529387]
[1659301429380,0.05203012,23796.0,23795.0,0.529387]
[1659301430039,0.08803012,23796.0,23795.0,0.529387]
[1659301430488,0.03399012,23796.0,23795.0,1.83664433]
[1659301430717,0.3,23805.0,23797.0,0.09980679]
[1659301430936,0.40725733,23805.0,23804.0,0.35201315]
[1659301431198,0.104976,23806.0,23804.0,0.68731141]
[1659301431400,0.104976,23806.0,23805.0,0.39980679]
[1659301431632,0.104976,23806.0,23805.0,0.3]
[1659301431885,0.104968,23809.0,23805.0,0.3]
[1659301432112,0.079,23806.0,23805.0,0.7]
[1659301432332,0.079,23806.0,23805.0,1.28128815]
[1659301433035,0.079,23806.0,23805.0,1.68854548]
[1659301433254,0.3,23812.0,23805.0,1.72008548]
[1659301433477,0.3837,23814.0,23806.0,0.40725733]
[1659301433718,0.40725733,23813.0,23811.0,0.35201315]
[1659301433961,0.379834,23812.0,23811.0,0.03529826]
[1659301434185,0.379834,23812.0,23811.0,0.35201315]
[1659301435334,0.300834,23812.0,23811.0,0.34151469]
[1659301435559,0.4653005,23813.0,23811.0,0.34151469]
[1659301435808,0.6202535,23813.0,23811.0,0.34151469]
[1659301436022,0.071,23812.0,23811.0,0.34151469]
[1659301436538,0.07292366,23812.0,23811.0,0.34151469]
[1659301437418,0.00192366,23812.0,23811.0,0.34151469]
[1659301438089,0.07292366,23812.0,23811.0,0.34151469]
[1659301438532,0.209912,23811.0,23807.0,0.87262097]
[1659301438795,0.05,23810.0,23807.0,0.209908]
[1659301438990,0.05,23810.0,23808.0,0.0352272]
[1659301439424,0.49495731,23809.0,23808.0,0.1401782]
[1659301439671,0.54495731,23809.0,23808.0,0.104951]
[1659301440130,0.54495731,23809.0,23808.0,0.1401782]
[1659301440353,0.00192366,23810.0,23808.0,0.3694072]
[1659301440571,0.00192366,23810.0,23808.0,0.1401782]
[1659301440800,0.06292366,23810.0,23808.0,0.4401782]
[1659301441041,0.60455959,23810.0,23808.0,0.4401782]
[1659301441708,0.65455959,23810.0,23808.0,0.4401782]
[1659301442163,0.59355959,23810.0,23808.0,0.4401782]
[1659301442378,0.67355959,23810.0,23808.0,0.4401782]
[1659301442850,0.67355959,23810.0,23808.0,0.44024926]
[1659301443088,0.67355959,23810.0,23806.0,0.4073271]
[1659301443089,0.85725733,23809.0,23806.0,6.977e-05]
[1659301443313,0.9,23807.0,23806.0,6.977e-05]
[1659301443571,1.65809133,23807.0,23806.0,6.977e-05]
[1659301443813,1.65809133,23807.0,23801.0,0.7]
[1659301443814,1.7161345,23807.0,23801.0,0.7]
[1659301444047,0.70809133,23806.0,23801.0,0.7]
[1659301444269,0.40725733,23805.0,23799.0,0.58227815]
[1659301444505,0.50725733,23805.0,23803.0,6.619e-05]
[1659301444720,1.5661345,23804.0,23803.0,6.619e-05]
[1659301445385,1.5661345,23804.0,23796.0,0.674392]
[1659301445630,0.209983,23803.0,23797.0,0.63660733]
[1659301445864,0.209983,23803.0,23802.0,6.619e-05]
[1659301446098,0.259983,23803.0,23802.0,6.619e-05]
[1659301446780,0.259983,23803.0,23797.0,0.61724233]
[1659301446781,0.05,23802.0,23797.0,0.61724233]
[1659301447003,0.209986,23801.0,23798.0,0.229348]
[1659301447248,0.209986,23801.0,23799.0,0.34964016]
[1659301447450,0.209986,23801.0,23800.0,0.229329]
[1659301447914,0.209986,23801.0,23800.0,0.329329]
[1659301448133,0.289986,23801.0,23800.0,0.329329]
[1659301448341,0.289986,23801.0,23800.0,0.1]
[1659301448569,0.29094783,23801.0,23800.0,0.1]
[1659301449048,0.29094783,23801.0,23800.0,0.329326]
[1659301449253,0.21094783,23801.0,23800.0,0.329326]
[1659301449472,0.21190966,23801.0,23800.0,0.329326]
[1659301449708,0.21190966,23801.0,23800.0,0.1]
[1659301450168,0.29190966,23801.0,23800.0,0.1]
[1659301450463,0.29190966,23801.0,23800.0,0.329326]
[1659301450690,0.29190966,23801.0,23800.0,0.1]
[1659301451158,0.29190966,23801.0,23800.0,0.329326]
[1659301451381,0.21190966,23801.0,23800.0,0.1]
[1659301451631,0.21190966,23801.0,23800.0,0.329326]
[1659301451854,0.21190966,23801.0,23800.0,0.629326]
[1659301452071,0.21190966,23801.0,23800.0,0.329326]
[1659301452306,0.29190966,23801.0,23800.0,0.1]
[1659301452758,0.29190966,23801.0,23800.0,0.329326]
[1659301453413,0.29190966,23801.0,23800.0,0.1]
[1659301453617,0.29190966,23801.0,23800.0,0.329326]
[1659301453864,0.29190966,23801.0,23800.0,0.629326]
[1659301455450,0.21190966,23801.0,23800.0,0.629326]
[1659301455687,0.26190966,23801.0,23800.0,0.629326]
[1659301456162,0.34090966,23801.0,23800.0,1.03658333]
[1659301456376,0.08092366,23801.0,23800.0,1.28162333]
[1659301456596,0.07804366,23801.0,23800.0,1.28162333]
[1659301456824,0.07804366,23801.0,23800.0,1.77352333]
[1659301457039,0.07804366,23801.0,23800.0,1.82352333]
[1659301457265,0.404952,23811.0,23800.0,2.14786246]
[1659301457488,0.404952,23811.0,23808.0,0.4]
[1659301457489,0.104952,23811.0,23808.0,0.4]
[1659301457747,0.104952,23811.0,23809.0,0.33529826]
[1659301458016,0.104952,23811.0,23809.0,0.3]
[1659301458903,0.104952,23811.0,23810.0,0.03529826]
[1659301459614,0.455786,23811.0,23810.0,0.03529826]
[1659301459837,0.455786,23811.0,23810.0,0.0006251]
[1659301460089,0.154952,23811.0,23810.0,0.11429826]
[1659301460530,0.15682228,23811.0,23810.0,0.11429826]
[1659301461415,0.15682228,23811.0,23810.0,0.03529826]
[1659301462125,0.15682228,23811.0,23810.0,0.11429826]
[1659301462365,0.15682228,23811.0,23810.0,0.079]
[1659301462576,0.20682228,23811.0,23810.0,0.079]
[1659301462795,0.55765628,23811.0,23810.0,0.079]
[1659301463032,1.26491361,23811.0,23810.0,0.079]
[1659301463307,1.29644361,23811.0,23802.0,0.4]
[1659301463524,1.29644361,23811.0,23802.0,0.9892]
[1659301463525,0.48878733,23810.0,23802.0,0.9892]
[1659301463748,1.27820113,23809.0,23806.0,6.415e-05]
[1659301463983,0.75,23807.0,23806.0,6.415e-05]
[1659301464238,1.150834,23807.0,23806.0,6.415e-05]
[1659301464452,1.50809133,23807.0,23806.0,6.415e-05]
[1659301464677,1.50809133,23807.0,23801.0,0.52598]
[1659301464897,0.40725733,23806.0,23801.0,0.52598]
[1659301465115,0.40725733,23806.0,23805.0,6.416e-05]
[1659301466031,0.4943005,23806.0,23802.0,0.3]
[1659301466242,0.7042625,23806.0,23801.0,0.630955]
[1659301466456,0.05,23805.0,23804.0,6.696e-05]
[1659301466677,0.7042625,23806.0,23804.0,6.696e-05]
[1659301466678,0.80119933,23806.0,23804.0,6.696e-05]
[1659301466913,0.69621933,23806.0,23804.0,6.696e-05]
[1659301467397,0.61721933,23806.0,23804.0,0.35019926]
[1659301467831,0.61721933,23806.0,23804.0,0.35026622]
[1659301468069,0.69621933,23806.0,23804.0,0.35026622]
[1659301468285,0.05,23805.0,23804.0,0.31496796]
[1659301468525,0.05,23805.0,23804.0,0.57954522]
[1659301468757,0.05187028,23805.0,23804.0,0.314901]
[1659301468992,0.05187028,23805.0,23804.0,0.844179]
[1659301469201,0.05187028,23805.0,23804.0,0.614901]
[1659301469664,0.05187028,23805.0,23804.0,0.87947726]